Cogmind - Beta 10.2 @@@ ROGUE MODE // 2021.08.16 @ 13:05:21 Player: Gilgameshx13 Result: Destroyed by G-34 Mercenary with Small Laser Performance ------------- Evolutions (1) 500 Regions Visited (3) 600 Robots Destroyed (25) 125 Value Destroyed (594) 594 Prototype IDs (2) 40 Alien Tech Used (0) 0 Bonus (8) 8 TOTAL SCORE: 1867 Bonus ------- High Alert Combat Kills 8 Cogmind --------- Core Integrity 0/400 Matter 288/300 Energy 100/100 System Corruption 3% Temperature Cool (6) Movement Core (300) Ox5 Location -9/Storage Parts ------- > --- POWER (1) -------- (None) > --- PROPULSION (2) --- (None) > --- UTILITY (4) ------ Large Storage Unit Sensor Array Improved Signal Interpreter > --- WEAPON (2) ------- (None) > --- INVENTORY (10) --- Improved Flight Unit Improved Flight Unit Improved Flight Unit Improved Flight Unit Improved Flight Unit Improved Flight Unit Drone Bay (2/2) Peak State ------------ > --- POWER ------------ Light Ion Engine > --- PROPULSION ------- Wheel Improved Flight Unit > --- UTILITY ---------- Large Storage Unit Improved Signal Interpreter Drone Bay > --- WEAPON ----------- EM Shotgun Shotgun > --- INVENTORY -------- Ion Engine Aluminum Leg Aluminum Leg Wheel Wheel Drone Bay Grenade Launcher [Rating: 18] Favorites ----------- Power Light Ion Engine Engine Light Ion Engine Propulsion Wheel Wheel Wheel Flight Unit Improved Flight Unit Utility Improved Signal Interpreter Device Drone Bay Storage Small Storage Unit Processor Improved Signal Interpreter Weapon Small Laser Energy Gun Small Laser Energy Cannon Advanced Beam Cannon Ballistic Gun Shotgun Launcher Grenade Launcher Build | -11 -10 -9 -9 ------- Run | Scr Mat Mat Sto Slots Evolved 2 | . . 2 . Power . | . . . . Propulsion . | . . . . Utility 2 | . . 2 . Weapon . | . . . . Parts Attached 20 | 6 1 2 11 Power 2 | 1 . . 1 Engine 2 | 1 . . 1 Core . | . . . . Reactor . | . . . . Propulsion 7 | 2 . 1 4 Treads . | . . . . Leg . | . . . . Wheel 6 | 2 . 1 3 Hover . | . . . . Flight 1 | . . . 1 Utility 5 | 1 . 1 3 Device 2 | . . . 2 Storage 2 | 1 . . 1 Processor 1 | . . 1 . Hackware . | . . . . Protection . | . . . . Artifact . | . . . . Weapon 6 | 2 1 . 3 Energy Gun 3 | 2 . . 1 Energy Cannon 1 | . . . 1 Ballistic Gun 1 | . . . 1 Ballistic Cannon . | . . . . Launcher 1 | . 1 . . Special Weapon . | . . . . Impact Weapon . | . . . . Slashing Weapon . | . . . . Piercing Weapon . | . . . . Special Melee Weapon . | . . . . Unidentified Prototypes 2 | . . . 2 Parts Lost 9 | . . . 9 Power 2 | . . . 2 Propulsion 4 | . . . 4 Utility 1 | . . . 1 Weapon 2 | . . . 2 Highest Loss Streak 5 | . . . 5 Average Slot Usage (%) 82 | . 85 73 84 Engine 10 | . 14 11 9 Wheel 22 | . 28 22 21 Device 7 | . . . 10 Storage 11 | . 14 11 11 Processor 9 | . . 7 11 Energy Gun 10 | . 25 11 7 Energy Cannon 1 | . . . 2 Ballistic Gun 4 | . . . 6 Launcher 4 | . 3 11 4 Naked Turns . | . . . . Heaviest Build 34 | 9 11 11 34 Greatest Support 26 | 26 26 26 20 Greatest Overweight (x) 5 | . . . 5 Average Overweight (x) . | . . . . Largest Inventory Capacity 10 | 6 6 6 10 Average Capacity 7 | 5 6 6 8 Most Carried 10 | 4 6 6 10 Average Carried 6 | 3 4 4 7 Final Capacity 10 | 6 6 6 10 Final Carried 7 | 4 6 5 7 Class Distribution -------------------- 100% | Mutant Dominant Class ---------------- Mutant | -10/Materials Mutant | -9/Materials Mutant | -9/Storage Resources | -11 -10 -9 -9 ----------- Run | Scr Mat Mat Sto Matter Collected 632 | 197 12 29 394 Remotely . | . . . . Salvage Created 608 | . 38 49 521 Parts 66 | . 4 2 60 Haulers Intercepted . | . . . . Recyclers Shooed . | . . . . Parts Field Recycled . | . . . . Retrieved Matter . | . . . . Parts Self-Destructed . | . . . . Prevented . | . . . . Kills | -11 -10 -9 -9 ------- Run | Scr Mat Mat Sto Combat Hostiles Destroyed 22 | . 3 4 15 Guns 10 | . 1 1 8 Cannons 2 | . . . 2 AOE 10 | . 2 3 5 Classes Destroyed 5 | . 2 2 1 Worker 1 | . . 1 . Watcher 2 | . . . 2 Swarmer 11 | . 2 3 6 Grunt 4 | . 1 . 3 Sentry 7 | . . 1 6 Best Kill Streak 5 | . 3 5 5 Combat Bots Only 5 | . 3 4 5 Max Kills in Single Turn 3 | . 1 2 3 Gunslinging . | . . . . Exploded 3 | . 1 2 3 Melee . | . . . . Uniques/NPCs Destroyed . | . . . . Combat | -11 -10 -9 -9 -------- Run | Scr Mat Mat Sto Damage Taken 1327 | . 72 134 1121 Core 424 | . 13 54 357 Absorbed by Shields . | . . . . Core Remaining (%) 97 | 100 94 . . Volleys Fired 51 | . 6 7 38 Largest 2 | . 2 2 2 Hottest 91 | . 70 70 91 Shots Fired 91 | . 12 14 65 Gun 66 | . 6 7 53 Cannon 10 | . . . 10 Launcher 15 | . 6 7 2 Special . | . . . . Kinetic 31 | . . . 31 Thermal 28 | . 6 7 15 Explosive 15 | . 6 7 2 Electromagnetic 17 | . . . 17 Robot Hit Streak 7 | . 2 4 7 Robot Miss Streak 4 | . 2 3 4 Penetration Max . | . . . . Secondary Targets 1 | . . . 1 Max Gunslinging Chain 1 | . . . 1 Shots Hit Robots 48 | . 5 8 35 Core Hits 40 | . 4 7 29 Critical Hits . | . . . . Critical Kills . | . . . . Critical Parts Destroyed . | . . . . Melee Attacks . | . . . . Impact . | . . . . Slashing . | . . . . Piercing . | . . . . Sneak Attacks . | . . . . Combat Hostiles . | . . . . Follow-up Attacks . | . . . . Damage Inflicted 1033 | . 191 211 631 Guns 390 | . 22 44 324 Cannons 144 | . . . 144 Explosions 499 | . 169 167 163 Melee . | . . . . Ramming . | . . . . Kinetic 194 | . . . 194 Thermal 222 | . 22 44 156 Explosive 499 | . 169 167 163 Electromagnetic 118 | . . . 118 Impact . | . . . . Slashing . | . . . . Piercing . | . . . . Highest Corruption 3 | . 2 . 3 Average Corruption 2 | . 2 . 2 Corruption Purged . | . . . . Effects 9 | . . . 9 Message Errors 4 | . . . 4 Matter Fused 2 | . . . 2 Energy Discharges 3 | . . . 3 Overload Shots . | . . . . Overflow Damage 16 | . 16 . . Projectiles . | . . . . Explosions 16 | . 16 . . Melee . | . . . . Knockbacks . | . . . . Impact . | . . . . Kinetic . | . . . . Secondary . | . . . . Self-Inflicted Damage 34 | . . 18 16 Shots 2 | . . 1 1 Rammed . | . . . . Targets Rammed . | . . . . Kicked . | . . . . Crushed . | . . . . Highest Temperature 85 | . 36 27 85 Average Temperature 18 | . 18 19 19 Received Heat Transfer 420 | . 12 27 381 Siege Activations . | . . . . Robots Corrupted . | . . . . Combat Hostiles . | . . . . Parts Fried . | . . . . Impact Corruptions . | . . . . Robots Melted . | . . . . Combat Hostiles . | . . . . Parts Melted . | . . . . Heat Transferred 434 | . 50 100 284 Parts Sabotaged . | . . . . Parts Stolen . | . . . . Parts Stripped . | . . . . Power Chain Reactions . | . . . . Missiles Intercepted . | . . . . Alert | -11 -10 -9 -9 ------- Run | Scr Mat Mat Sto Peak Influence 404 | . 100 162 404 Initial 68 | . . 42 68 Average 149 | . 27 78 191 Maximum Alert Level 2 | . . . 2 Low Security (%) 80 | 100 100 100 73 Level 1 15 | . . . 21 Level 2 3 | . . . 4 Level 3 . | . . . . Level 4 . | . . . . Level 5 . | . . . . High Security . | . . . . Max Security . | . . . . Squads Dispatched 4 | . 2 . 2 Investigation . | . . . . Extermination . | . . . . Reinforcement 4 | . 2 . 2 Assault . | . . . . Garrison . | . . . . Intercept . | . . . . Construction Impeded . | . . . . Haulers Reinforced . | . . . . Stealth | -11 -10 -9 -9 --------- Run | Scr Mat Mat Sto Distress Signals 3 | . 1 . 2 Communications Jammed . | . . . . Distress Signals . | . . . . Times Spotted 38 | . 8 5 25 Peak Tracking Total 6 | . 4 6 6 Tactical Retreats 6 | . 1 1 4 Traps | -11 -10 -9 -9 ------- Run | Scr Mat Mat Sto Traps Triggered 5 | . 1 . 4 Indirectly . | . . . . Trap Hack Attempts . | . . . . Triggered . | . . . . Disarmed . | . . . . Reprogrammed . | . . . . Reused . | . . . . Traps Extracted . | . . . . Installed . | . . . . Triggered . | . . . . Machines | -11 -10 -9 -9 ---------- Run | Scr Mat Mat Sto Machines Disabled . | . . . . Max in Single Turn . | . . . . Machines Sabotaged . | . . . . Garrisons Compromised . | . . . . Overloaded Fab Kills . | . . . . Fab Network Shutdowns . | . . . . Hacking | -11 -10 -9 -9 --------- Run | Scr Mat Mat Sto Machines Accessed 3 | . . . 3 Terminals 3 | . . . 3 Fabricators . | . . . . Repair Stations . | . . . . Recycling Units . | . . . . Scanalyzers . | . . . . Garrison Access . | . . . . Total Hacks 6 | . . . 6 Successful 3 | . . . 3 Failed 3 | . . . 3 Catastrophic 1 | . . . 1 Database Lockouts . | . . . . Manual 3 | . . . 3 Terminals 6 | . . . 6 Fabricators . | . . . . Repair Stations . | . . . . Recycling Units . | . . . . Scanalyzers . | . . . . Garrison Access . | . . . . Terminal Hacks 3 | . . . 3 Open Door 3 | . . . 3 Fabricator Hacks . | . . . . Repair Station Hacks . | . . . . Recycling Unit Hacks . | . . . . Scanalyzer . | . . . . Garrison Access Hacks . | . . . . Unauthorized Hacks . | . . . . Terminals . | . . . . Fabricators . | . . . . Repair Stations . | . . . . Recycling Units . | . . . . Scanalyzers . | . . . . Garrison Access . | . . . . Data Cores Recovered . | . . . . Used . | . . . . Hacking Detections 2 | . . . 2 Full Trace Events . | . . . . Feedback Events . | . . . . Feedback Blocked . | . . . . Robot Schematics Acquired . | . . . . Robots Built . | . . . . Matter . | . . . . Time . | . . . . Total Robot Build Rating . | . . . . Part Schematics Acquired . | . . . . Parts Built . | . . . . Matter . | . . . . Time . | . . . . Total Part Build Rating . | . . . . Parts Repaired . | . . . . Time . | . . . . Parts Recycled . | . . . . Recycled Matter . | . . . . Retrieved Matter . | . . . . Retrieved Components . | . . . . Parts Scanalyzed . | . . . . Part Schematics Acquired . | . . . . Parts Damaged . | . . . . Bothacking | -11 -10 -9 -9 ------------ Run | Scr Mat Mat Sto Used RIF Installer . | . . . . Robots Hacked . | . . . . Non-combat . | . . . . Combat . | . . . . Robot Hacks Applied . | . . . . Relay Couplers Released . | . . . . Robots Rewired . | . . . . Allies Hacked . | . . . . Hacks Repelled . | . . . . Allies | -11 -10 -9 -9 -------- Run | Scr Mat Mat Sto Total Allies . | . . . . Largest Group . | . . . . Highest-Rated Group . | . . . . Highest-Rated Ally . | . . . . Total Orders 3 | . . . 3 EXPLORE 3 | . . . 3 Ally Attacks . | . . . . Total Damage . | . . . . Kills . | . . . . Allies Corrupted . | . . . . Allies Melted . | . . . . Intel | -11 -10 -9 -9 ------- Run | Scr Mat Mat Sto Robot Analysis Total . | . . . . Derelict Logs Recovered . | . . . . Drone Launches 3 | . . . 3 Drone Recoveries 2 | . . . 2 Exploration | -11 -10 -9 -9 ------------- Run | Scr Mat Mat Sto Turns Passed 1076 | 58 138 103 777 Spaces Moved 1012 | 52 130 91 739 Core 13 | 12 . . 1 Treads . | . . . . Legs . | . . . . Wheels 999 | 40 130 91 738 Hover . | . . . . Flight . | . . . . Fastest Speed 50 | 50 90 80 80 Average Speed 86 | 80 90 84 86 Slowest Speed 300 | 90 90 90 300 Overloaded Moves . | . . . . Propulsion Burnouts . | . . . . Robots Hopped . | . . . . Cave-ins Triggered . | . . . . Exploration Rate (%) 26 | 3 30 8 66 Regions Visited 3 Branch Regions 1 Pre-discovered Areas . | . . . . Known Exits Taken 1 | . . 1 . Unknown Exits Taken 2 | 1 1 . . Scrap Searched . | . . . . Spaces Dug . | . . . . Terrain Destroyed 110 | . 51 49 10 Melee . | . . . . Projectile . | . . . . AOE 110 | . 51 49 10 Terrain Rammed . | . . . . Walls Destroyed . | . . . . Machines Disabled . | . . . . Actions | -11 -10 -9 -9 --------- Run | Scr Mat Mat Sto Total 1121 | 67 138 103 813 Wait . | . . . . Move 1009 | 51 129 90 739 Hop . | . . . . Pick Up 30 | 10 2 2 16 Fast Attach . | . . . . Attach 12 | 6 . 1 5 Detach . | . . . . Swap 8 | . 1 1 6 Drop 11 | . . 2 9 Fire 51 | . 6 7 38 Melee . | . . . . Ram . | . . . . Kick . | . . . . Crush . | . . . . Escape Stasis . | . . . . Rewire . | . . . . Trap . | . . . . Miscellaneous . | . . . . Route ------- -11/Scrapyard -10/Materials -9/Materials -9/Storage History --------- Turn | Location | Event 16 | -11/Scrapyard | Discovered new exit (range 15) 59 | -11/Scrapyard | Entered Materials 191 | -10/Materials | Discovered new exit (range 5) 197 | -10/Materials | Entered another Materials area 197 | -9/Materials | Evolved 2 slots: Utility x2 260 | -9/Materials | Discovered new exit (range 12) 299 | -9/Materials | Identified exit to Storage 300 | -9/Materials | Entered Storage 335 | -9/Storage | Build established: Mutant 1042 | -9/Storage | Core integrity fell below 50% 1065 | -9/Storage | Core integrity fell below 20% 1077 | -9/Storage | Destroyed by G-34 Mercenary with Small Laser Last Messages --------------- CX>J5:FTPKUBWK#CXIVC8/ FYVJLYHR& Ion Engine destroyed. Y-45 Defender destroyed. Acquired 31 matter. 32T&Q AHZIQ7,RAVTYWLEL W-16 Scout destroyed. Adv. Beam Cannon destroyed. G-34 Mercenary destroyed. Acquired 8 matter. Wheel destroyed. Shotgun destroyed. Wheel destroyed. Map ----- +----------------------------------------------------+ | ????????????? """ ??????????????????????????????? | | ????????????? """ ??????????????????????????????? | | ??????????????"""???????????????????????????????? | | ?????????????? ???????????????????????????????? | | ?????????????##+############+#########+?????????? | | ?????#???????# ????????? | | ????? ?####### ????????? | | ????? ?# ????????? | | ????? ?# ###### ######## ########?????????????? | | ????? ?# #????# #??????# #? """ #?????????????? | | ????? ?+ #????# #??????# #? "Y" #?????????????? | | ????? ?# ######+###????# # #?????????????? | | ????#+## # #????# # #?????????????? | | ????# # """ #????# g + #?????????????? | | ????# # """ #????#g # """ #?????????????? | | ????# # """ #????# # """ #?????????????? | | ????+ + #????# #?""" #?????????????? | | ????# # """ #????# m#? #?????????????? | | ##### # """ ##???# #??"" ??????????????? | | # """ #???# #??"" #?????????????? | | ##### # *= ##???# #???" #?????????????? | | ##### ####"#####????# #????????????????????? | | # T# % #??????# #????????????????????? | | # ## #?????## #????????????????????? | | # ##=%! #?????#T #????????????????????? | | # ## * #?????## @ #????????????????????? | | # ## #??????# #????????????????????? | | #+##/### ##??????# g#????????????????????? | | # # #??????? ????????????????????? | | *! # """ # #??????# #???????????????????? | | [% # """ # #??????a Yg #???????????????????? | | /#### """ + #????? # #???????????????????? | | ===*# # #????? # #???????????????????? | | """ # # #???? ?## ##???????????????????? | | "?" # #[=%#??? ??# #????????????????????? | | ??" ###### #![%#??? ???# #????????????????????? | | ??" ########%=!#??""???# #????????????????????? | | ??" # ==!*=!#???????# #????????????????????? | | ?? # *!![!!#???????? ?????????????????????? | | ?? # = #???????? ?????????????????????? | | ?? ############???????? ?????????????????????? | | #####?????????##########????????????????????????? | | "#????????????# #????????????????????????? | | "#????????????# """" #????????????????????????? | | "############## ""??" #????????????????????????? | | # ""???" #????????????????????????? | | ^^ + "???"" #????????????????????????? | | ^^ # "??"" #????????????????????????? | | ############# # """" #????????????????????????? | | #????# # #????????????????????????? | +----------------------------------------------------+ Best States ------------- Heat Dissipation 28 Energy Generation 10 Energy Capacity 250 Matter Stores 300 Matter Capacity 300 Sight Range 16 Robot Scan Range 10 Terrain Scan Density 10 Evasion (%) 50 Item Schematics ----------------- None Robot Schematics ------------------ None Fabricated ------------ Nothing Alien Tech Used ----------------- None Achievements -------------- None Challenges ------------ None Game ------ Seed LinkedDynamicNullifier Manual? 0 Play Time 00:12:14 Cumulative 17.2 hours Start 2021.08.16 @ 12:53:55 End 2021.08.16 @ 13:05:21 Sessions 1 Manual Loads 0 Difficulty Rogue Special Mode None Game No. 40 Rogue 20 Adventurer 20 Explorer 0 Win Type - Total 1 Types 1/0/0/0/0/0/0/0/0 Lore% 18 Gallery% 39 Achievement% 27 Wizard Run 0 Options --------- ASCII 0 Keyboard 0 Movement Arrows Keybinds 0 Fullscreen 1 Font 18/SmallcapsGlow Map View 76x50 Tactical HUD 0 Map Filters NONE Filters NONE Steam 1 RUN: c794a593-e097-442e-bbbf-fdd4892681fd